[Event "Krakow Championship-C 2022"]
[Site "Krakow"]
[Date "2022.07.02"]
[Round "9.4"]
[White "Diachek, Andriy"]
[Black "Wegrzyn, Bartosz"]
[Result "1-0"]
[ECO "C07"]
[WhiteElo "1451"]
[BlackElo "1286"]
[Annotator "NA RC"]
[PlyCount "105"]
[EventDate "2022.06.25"]
[EventType "swiss"]
[EventCountry "POL"]
[SourceTitle "playchess.com"]
[Source "ChessBase"]
[SourceQuality "1"]
[TimeControl "5400+30"]

1. e4 {[%emt 0:00:04]} e6 {[%emt 0:00:05]} 2. d4 {[%emt 0:00:06]} d5 {[%emt 0:00:04]} 3. Nd2 {[%emt 0:00:07]} c5 {[%emt 0:00:06]} 4. exd5 {[%emt 0:00:07]} Qxd5 {[%emt 0:00:06]} 5. dxc5 {[%emt 0:00:42]} Bxc5 6. Ngf3 a6 {[%emt 0:05:29]} 7. Bc4 {[%emt 0:01:12]} Qc6 {[%emt 0:00:14]} 8. a4 {[%emt 0:01:38]} Nf6 {[%emt 0:00:45]} 9. O-O {[%emt 0:00:28]} O-O {[%emt 0:00:45]} 10. Qe2 {[%emt 0:01:02]} Nbd7 {[%emt 0:02:31]} 11. Bd3 {[%emt 0:03:46]} b6 {[%emt 0:06:12]} 12. b3 {[%emt 0:08:57]} Bb7 {[%emt 0:03:31]} 13. Bb2 {[%emt 0:01:11]} Be7 {[%emt 0:06:00]} 14. Nc4 {[%emt 0:12:31]} Nd5 {[%emt 0:10:07]} 15. Nce5 {[%emt 0:05:10]} Nxe5 {[%emt 0:00:53]} 16. Nxe5 {[%emt 0:00:24]} Nf4 {[%emt 0:06:01]} 17. Nxc6 {[%emt 0:00:51]} Nxe2+ {[%emt 0:00:09]} 18. Bxe2 {[%emt 0:00:04]} Bxc6 {[%emt 0:04:58]} 19. Rfd1 {[%emt 0:00:45]} b5 {[%emt 0:00:56]} 20. axb5 {[%emt 0:06:59]} axb5 {[%emt 0:00:11]} 21. c4 {[%emt 0:00:45]} bxc4 {[%emt 0:01:03]} 22. Bxc4 {[%emt 0:00:08]} Rxa1 {[%emt 0:01:39]} 23. Rxa1 {[%emt 0:00:13]} Rb8 {[%emt 0:04:52]} 24. Be5 {[%emt 0:02:29]} Bf6 {[%emt 0:00:20]} 25. Bxf6 {[%emt 0:03:36]} gxf6 {[%emt 0:00:05]} 26. Kf1 {[%emt 0:00:57]} Bb5 {[%emt 0:00:09]} 27. Bxb5 {[%emt 0:00:31]} Rxb5 {[%emt 0:00:09]} 28. Rb1 {[%emt 0:00:24]} Kf8 {[%emt 0:01:34]} 29. b4 {[%emt 0:00:11]} Ke7 {[%emt 0:00:11]} 30. Ke2 {[%emt 0:00:18]} Kd6 {[%emt 0:00:08]} 31. Kd3 {[%emt 0:00:24]} Kd5 {[%emt 0:00:14]} 32. Kc3 {[%emt 0:00:28]} Rb7 {[%emt 0:02:26]} 33. Rd1+ {[%emt 0:00:31]} Ke5 {[%emt 0:02:20]} 34. Rd2 {[%emt 0:00:56]} Rc7+ {[%emt 0:01:35]} 35. Kb3 {[%emt 0:00:25]} Rb7 {[%emt 0:00:22]} 36. Kc4 {[%emt 0:00:19]} f5 {[%emt 0:06:18]} 37. Kc5 {[%emt 0:00:25]} Rc7+ {[%emt 0:02:10]} 38. Kb6 {[%emt 0:00:21]} Rc8 {[%emt 0:00:33]} 39. b5 {[%emt 0:00:11]} Rc1 {[%emt 0:02:19]} 40. Ka7 {[%emt 0:00:30]} Ra1+ {[%emt 0:01:24]} 41. Kb7 {[%emt 0:00:09]} f6 {[%emt 0:01:13]} 42. b6 {[%emt 0:00:07]} Ra3 {[%emt 0:01:03]} 43. Kc8 {[%emt 0:00:13]} Rc3+ {[%emt 0:00:13]} 44. Kb8 {[%emt 0:00:06]} Rc4 {[%emt 0:08:02]} 45. b7 {[%emt 0:00:10]} Rg4 {[%emt 0:01:16]} 46. Rd7 {[%emt 0:00:54]} Rc4 {[%emt 0:02:47]} 47. Rc7 {[%emt 0:00:06]} Rg4 {[%emt 0:00:35]} 48. Rd7 {[%emt 0:00:39]} Rc4 {[%emt 0:00:22]} 49. Ka7 {[%emt 0:00:22]} Ra4+ {[%emt 0:00:33]} 50. Kb6 {[%emt 0:00:13]} Rb4+ {[%emt 0:00:19]} 51. Kc7 {[%emt 0:00:06]} Rc4+ {[%emt 0:00:22]} 52. Kd8 {[%emt 0:00:05]} Rb4 {[%emt 0:02:07]} 53. Kc8 {[%emt 0:00:07]} 1-0

[Event "Krakow Championship-C 2022"]
[Site "Krakow"]
[Date "2022.07.02"]
[Round "9.5"]
[White "Jokel, Marcin"]
[Black "Krasuski, Pawel"]
[Result "0-1"]
[ECO "A80"]
[WhiteElo "1413"]
[BlackElo "1682"]
[Annotator "NA RC"]
[PlyCount "84"]
[EventDate "2022.06.25"]
[EventType "swiss"]
[EventCountry "POL"]
[SourceTitle "playchess.com"]
[Source "ChessBase"]
[SourceQuality "1"]
[TimeControl "5400+30"]

1. d4 {[%emt 0:00:03]} f5 {[%emt 0:00:24]} 2. Nf3 {[%emt 0:00:14]} g6 {[%emt 0:00:11]} 3. g3 {[%emt 0:00:23]} Bg7 {[%emt 0:00:11]} 4. Bg2 {[%emt 0:01:11]} Nf6 {[%emt 0:00:23]} 5. O-O {[%emt 0:00:27]} O-O {[%emt 0:00:30]} 6. c4 {[%emt 0:00:27]} e6 {[%emt 0:00:12]} 7. Nc3 {[%emt 0:01:36]} d5 {[%emt 0:00:52]} 8. b3 {[%emt 0:02:50]} Ne4 {[%emt 0:03:44]} 9. Bb2 {[%emt 0:02:21]} Nc6 {[%emt 0:00:38]} 10. e3 {[%emt 0:02:32]} Ne7 {[%emt 0:02:53]} 11. c5 {[%emt 0:02:57]} b6 {[%emt 0:01:49]} 12. b4 {[%emt 0:02:06]} bxc5 {[%emt 0:00:36]} 13. bxc5 {[%emt 0:00:45]} Rb8 {[%emt 0:00:06]} 14. Qc2 {[%emt 0:02:11]} Nc6 {[%emt 0:03:48]} 15. Nxe4 {[%emt 0:07:49]} fxe4 {[%emt 0:02:17]} 16. Ne5 {[%emt 0:03:55]} Nxe5 {[%emt 0:02:51]} 17. dxe5 {[%emt 0:00:06]} Qg5 {[%emt 0:00:30]} 18. Rab1 {[%emt 0:07:12]} Ba6 {[%emt 0:02:20]} 19. Rfd1 {[%emt 0:13:40]} Bxe5 {[%emt 0:02:04]} 20. Bf1 {[%emt 0:07:14]} Bxf1 {[%emt 0:01:43]} 21. Rxf1 {[%emt 0:00:30]} c6 {[%emt 0:03:27]} 22. Bxe5 {[%emt 0:02:24]} Qxe5 {[%emt 0:00:22]} 23. Qa4 {[%emt 0:01:29]} Qc7 {[%emt 0:00:24]} 24. Qc2 {[%emt 0:02:03]} Qa5 {[%emt 0:01:09]} 25. h4 {[%emt 0:02:23]} Qa3 {[%emt 0:03:06]} 26. h5 {[%emt 0:03:02]} g5 {[%emt 0:01:27]} 27. Rxb8 {[%emt 0:02:00]} Rxb8 {[%emt 0:02:00]} 28. Rb1 {[%emt 0:00:31]} Rb4 {[%emt 0:03:16]} 29. Rxb4 {[%emt 0:03:43]} Qxb4 {[%emt 0:00:13]} 30. Kg2 {[%emt 0:02:00]} h6 {[%emt 0:05:20]} 31. Kh3 {[%emt 0:01:26]} Kg7 {[%emt 0:01:50]} 32. Qc1 {[%emt 0:01:47]} Kf6 {[%emt 0:00:26]} 33. Qc2 {[%emt 0:01:51]} e5 {[%emt 0:01:47]} 34. Kg2 {[%emt 0:02:29]} g4 {[%emt 0:00:46]} 35. Qd1 {[%emt 0:02:39]} Kf5 {[%emt 0:00:15]} 36. Qc2 {[%emt 0:00:52]} d4 {[%emt 0:09:00]} 37. exd4 {[%emt 0:00:56]} exd4 {[%emt 0:00:10]} 38. Qc1 {[%emt 0:00:59]} e3 {[%emt 0:00:48]} 39. Qc2+ {[%emt 0:01:42]} d3 {[%emt 0:00:31]} 40. Qxd3+ {[%emt 0:01:04]} Qe4+ {[%emt 0:00:16]} 41. Qxe4+ {[%emt 0:00:08]} Kxe4 {[%emt 0:00:12]} 42. fxe3 {[%emt 0:01:55]} Kxe3 {[%emt 0:00:28]} 0-1

[Event "Krakow Championship-C 2022"]
[Site "Krakow"]
[Date "2022.07.02"]
[Round "9.6"]
[White "Chmielewski, Miroslaw"]
[Black "Wandor, Adam"]
[Result "1/2-1/2"]
[ECO "B10"]
[WhiteElo "1571"]
[BlackElo "1456"]
[Annotator "NA RC"]
[PlyCount "93"]
[EventDate "2022.06.25"]
[EventType "swiss"]
[EventCountry "POL"]
[SourceTitle "playchess.com"]
[Source "ChessBase"]
[SourceQuality "1"]
[TimeControl "5400+30"]

1. e4 {[%emt 0:00:44]} c6 {[%emt 0:00:05]} 2. Ne2 {[%emt 0:07:54]} d5 {[%emt 0:03:29]} 3. exd5 {[%emt 0:00:46]} cxd5 {[%emt 0:00:07]} 4. Ng3 {[%emt 0:00:06]} g6 {[%emt 0:01:48]} 5. d4 {[%emt 0:02:03]} Bg7 {[%emt 0:01:06]} 6. c3 {[%emt 0:00:32]} Nc6 {[%emt 0:01:33]} 7. Be2 {[%emt 0:03:37]} Nf6 {[%emt 0:01:11]} 8. Bf4 {[%emt 0:03:14]} h5 {[%emt 0:10:26]} 9. Nd2 {[%emt 0:04:10]} Qb6 {[%emt 0:04:46]} 10. Qb3 {[%emt 0:04:58]} Qxb3 {[%emt 0:04:44]} 11. axb3 {[%emt 0:00:15]} O-O {[%emt 0:03:52]} 12. O-O {[%emt 0:03:31]} Ng4 {[%emt 0:21:17]} 13. h3 {[%emt 0:02:09]} Bh6 {[%emt 0:03:29]} 14. Bxh6 {[%emt 0:01:40]} Nxh6 {[%emt 0:00:07]} 15. f4 {[%emt 0:01:31]} Kg7 {[%emt 0:05:42]} 16. Bd3 {[%emt 0:01:11]} Bd7 {[%emt 0:02:25]} 17. Nf3 {[%emt 0:02:47]} e6 {[%emt 0:02:12]} 18. b4 {[%emt 0:11:09]} b6 {[%emt 0:05:45]} 19. Ra3 {[%emt 0:05:29]} Rfc8 {[%emt 0:06:18]} 20. Rfa1 {[%emt 0:00:39]} Rc7 {[%emt 0:00:31]} 21. Nf1 {[%emt 0:07:19]} Ng8 {[%emt 0:05:33]} 22. Ne3 {[%emt 0:03:25]} a5 {[%emt 0:06:37]} 23. bxa5 {[%emt 0:01:08]} Rxa5 {[%emt 0:00:07]} 24. Rxa5 {[%emt 0:01:12]} Nxa5 25. Nc2 {[%emt 0:02:14]} Ra7 {[%emt 0:03:26]} 26. Ne5 {[%emt 0:01:22]} Be8 {[%emt 0:00:25]} 27. Kf2 {[%emt 0:04:37]} Ne7 {[%emt 0:01:05]} 28. Ra3 {[%emt 0:01:56]} f6 {[%emt 0:00:31]} 29. Nf3 {[%emt 0:00:15]} Nc8 {[%emt 0:02:49]} 30. Nd2 {[%emt 0:00:41]} b5 {[%emt 0:01:25]} 31. b3 {[%emt 0:06:59]} Bc6 {[%emt 0:00:41]} 32. Nb4 {[%emt 0:00:49]} Bd7 {[%emt 0:01:02]} 33. g4 {[%emt 0:02:13]} hxg4 {[%emt 0:00:19]} 34. hxg4 {[%emt 0:00:06]} Nc6 {[%emt 0:01:10]} 35. Rxa7 {[%emt 0:02:01]} N8xa7 {[%emt 0:00:07]} 36. Na6 {[%emt 0:00:37]} e5 {[%emt 0:00:37]} 37. dxe5 {[%emt 0:04:13]} fxe5 {[%emt 0:00:09]} 38. Nc7 {[%emt 0:00:47]} exf4 {[%emt 0:01:53]} 39. Nxd5 {[%emt 0:00:23]} Ne5 {[%emt 0:00:19]} 40. Nxf4 {[%emt 0:02:41]} g5 {[%emt 0:00:28]} 41. Nh5+ {[%emt 0:00:07]} Kh6 {[%emt 0:00:12]} 42. Be2 {[%emt 0:01:48]} Bxg4 {[%emt 0:00:40]} 43. Nf6 {[%emt 0:00:34]} Bxe2 {[%emt 0:00:11]} 44. Kxe2 {[%emt 0:00:10]} Kg6 {[%emt 0:00:19]} 45. Nd5 {[%emt 0:00:53]} Kf5 {[%emt 0:00:32]} 46. c4 {[%emt 0:02:06]} bxc4 {[%emt 0:00:06]} 47. bxc4 {[%emt 0:00:07]} 1/2-1/2

[Event "Krakow Championship-C 2022"]
[Site "Krakow"]
[Date "2022.07.02"]
[Round "9.7"]
[White "Khimichenko, Dmytro"]
[Black "Herka, Jakub"]
[Result "1/2-1/2"]
[ECO "B84"]
[WhiteElo "1427"]
[BlackElo "1494"]
[Annotator "NA RC"]
[PlyCount "45"]
[EventDate "2022.06.25"]
[EventType "swiss"]
[EventCountry "POL"]
[SourceTitle "playchess.com"]
[Source "ChessBase"]
[SourceQuality "1"]
[TimeControl "5400+30"]

1. e4 {[%emt 0:00:03]} c5 {[%emt 0:00:23]} 2. Nf3 {[%emt 0:00:09]} d6 {[%emt 0:00:07]} 3. d4 {[%emt 0:00:14]} cxd4 {[%emt 0:00:02]} 4. Nxd4 {[%emt 0:00:11]} Nf6 {[%emt 0:00:11]} 5. Nc3 {[%emt 0:00:09]} a6 {[%emt 0:00:05]} 6. Be2 {[%emt 0:00:37]} e6 {[%emt 0:01:01]} 7. Be3 {[%emt 0:00:11]} b5 {[%emt 0:01:22]} 8. a3 {[%emt 0:00:52]} Bb7 {[%emt 0:00:36]} 9. f3 {[%emt 0:00:51]} Be7 {[%emt 0:03:22]} 10. O-O {[%emt 0:01:06]} O-O {[%emt 0:03:58]} 11. Qd2 {[%emt 0:00:17]} Nbd7 {[%emt 0:02:09]} 12. Rad1 {[%emt 0:02:07]} Rc8 {[%emt 0:04:27]} 13. Nb3 {[%emt 0:05:01]} Qc7 {[%emt 0:21:05]} 14. Qe1 {[%emt 0:14:47]} d5 {[%emt 0:02:35]} 15. exd5 {[%emt 0:01:23]} Nxd5 {[%emt 0:00:35]} 16. Nxd5 {[%emt 0:05:52]} Bxd5 {[%emt 0:00:13]} 17. Nd4 {[%emt 0:04:21]} Bf6 {[%emt 0:09:10]} 18. c3 {[%emt 0:05:31]} Nb6 {[%emt 0:04:16]} 19. Bc1 {[%emt 0:05:07]} Rfd8 {[%emt 0:08:43]} 20. Qf2 {[%emt 0:05:46]} Bc4 {[%emt 0:05:03]} 21. Bxc4 {[%emt 0:01:43]} Nxc4 {[%emt 0:00:13]} 22. Nc2 {[%emt 0:01:44]} Rd7 {[%emt 0:03:17]} 23. Ne3 {[%emt 0:04:02]} 1/2-1/2

[Event "Krakow Championship-C 2022"]
[Site "Krakow"]
[Date "2022.07.02"]
[Round "9.8"]
[White "Swietlik, Grzegorz"]
[Black "Cwiek, Stefan"]
[Result "0-1"]
[ECO "A01"]
[WhiteElo "1623"]
[BlackElo "1280"]
[Annotator "NA RC"]
[PlyCount "92"]
[EventDate "2022.06.25"]
[EventType "swiss"]
[EventCountry "POL"]
[SourceTitle "playchess.com"]
[Source "ChessBase"]
[SourceQuality "1"]
[TimeControl "5400+30"]

1. b3 {[%emt 0:00:02]} d5 {[%emt 0:00:22]} 2. e3 {[%emt 0:00:06]} Nf6 {[%emt 0:00:20]} 3. Bb2 {[%emt 0:00:07]} Bf5 {[%emt 0:00:28]} 4. d3 {[%emt 0:00:11]} e6 {[%emt 0:00:26]} 5. Ne2 {[%emt 0:00:11]} c5 {[%emt 0:01:01]} 6. Ng3 {[%emt 0:00:28]} Bg6 {[%emt 0:00:15]} 7. Be2 {[%emt 0:00:17]} Nc6 {[%emt 0:00:28]} 8. Nd2 {[%emt 0:00:32]} Bd6 {[%emt 0:02:20]} 9. Nf3 {[%emt 0:02:10]} Qc7 {[%emt 0:02:29]} 10. Qd2 {[%emt 0:03:43]} e5 {[%emt 0:09:52]} 11. Nh4 {[%emt 0:00:17]} O-O-O {[%emt 0:04:07]} 12. Nhf5 {[%emt 0:03:20]} Bf8 {[%emt 0:00:23]} 13. O-O-O {[%emt 0:00:27]} Qd7 {[%emt 0:03:30]} 14. Nh4 {[%emt 0:01:18]} Bd6 {[%emt 0:02:39]} 15. Nxg6 {[%emt 0:01:02]} hxg6 {[%emt 0:00:10]} 16. Bf3 {[%emt 0:05:43]} Rhe8 {[%emt 0:12:48]} 17. Kb1 {[%emt 0:01:07]} Qe7 {[%emt 0:11:45]} 18. Qe2 {[%emt 0:01:12]} Bc7 {[%emt 0:05:42]} 19. h4 {[%emt 0:05:03]} Kb8 {[%emt 0:11:11]} 20. h5 {[%emt 0:01:40]} gxh5 {[%emt 0:00:22]} 21. Nxh5 {[%emt 0:00:20]} Nxh5 {[%emt 0:00:37]} 22. Rxh5 {[%emt 0:00:12]} e4 {[%emt 0:01:04]} 23. dxe4 {[%emt 0:01:50]} dxe4 {[%emt 0:00:33]} 24. Bg4 {[%emt 0:00:08]} g6 {[%emt 0:02:12]} 25. Rhd5 {[%emt 0:00:26]} f5 {[%emt 0:00:22]} 26. Bh3 {[%emt 0:00:04]} Nb4 {[%emt 0:02:16]} 27. R5d2 {[%emt 0:03:29]} Rxd2 {[%emt 0:01:05]} 28. Rxd2 {[%emt 0:00:28]} Be5 {[%emt 0:00:42]} 29. Bxe5+ {[%emt 0:08:16]} Qxe5 {[%emt 0:00:07]} 30. Qd1 {[%emt 0:00:06]} a6 {[%emt 0:04:17]} 31. g3 {[%emt 0:00:19]} c4 {[%emt 0:06:02]} 32. Rd8+ {[%emt 0:05:22]} Rxd8 {[%emt 0:00:28]} 33. Qxd8+ {[%emt 0:00:05]} Ka7 {[%emt 0:00:08]} 34. Qd4+ {[%emt 0:04:22]} Qxd4 {[%emt 0:00:13]} 35. exd4 {[%emt 0:00:05]} c3 {[%emt 0:00:27]} 36. Bf1 {[%emt 0:03:07]} b5 {[%emt 0:01:32]} 37. a3 {[%emt 0:01:35]} Nc6 {[%emt 0:01:39]} 38. d5 {[%emt 0:00:05]} Ne5 {[%emt 0:01:05]} 39. Be2 {[%emt 0:00:07]} Kb6 {[%emt 0:01:01]} 40. b4 {[%emt 0:01:54]} Nf3 {[%emt 0:07:13]} 41. Bxf3 {[%emt 0:05:02]} exf3 {[%emt 0:00:08]} 42. Ka2 {[%emt 0:00:03]} g5 {[%emt 0:00:56]} 43. Kb3 {[%emt 0:01:00]} g4 {[%emt 0:00:12]} 44. Kxc3 {[%emt 0:00:05]} f4 {[%emt 0:00:09]} 45. Kd3 {[%emt 0:01:11]} fxg3 {[%emt 0:00:07]} 46. fxg3 {[%emt 0:00:07]} Kc7 {[%emt 0:00:08]} 0-1